bitfinex/quotes_ETHUSD_20260227
["timestamp","ask_amount","ask_price","bid_price","bid_amount"]
[1772216482947,1.29688229,1927.7,1927.2,1.60801846]
[1772216483351,0.47275484,1927.6,1926.9,1.60823842]
[1772216483730,0.47275484,1927.6,1927.1,0.31085224]
[1772216483930,0.47275484,1927.6,1927.0,1.208]
[1772216484162,0.47275484,1927.6,1927.1,1.208]
[1772216485163,1.29701686,1927.5,1927.1,2.50528228]
[1772216485579,0.47275484,1927.4,1927.3,0.0011]
[1772216485745,0.47275484,1927.4,1926.8,0.0011]
[1772216486259,0.47275484,1927.3,1926.7,0.0011]
[1772216487365,0.47275484,1927.1,1926.7,0.0011]
[1772216489146,0.47275484,1927.0,1926.5,0.0011]
[1772216489346,0.47275484,1926.8,1926.5,0.0011]
[1772216490178,0.47275484,1926.6,1926.0,0.00153886]
[1772216491479,1.77044495,1926.5,1926.0,0.00153886]
[1772216491642,0.47275484,1926.4,1926.0,0.00153886]
[1772216491847,0.47275484,1926.2,1925.6,1.2982874]
[1772216492169,0.47275484,1926.2,1925.5,2.50436406]
[1772216492397,0.47275484,1926.2,1925.2,1.29851678]
[1772216492574,0.47275484,1926.2,1925.3,1.206]
[1772216493285,1.77044495,1926.5,1925.4,0.3134911]
[1772216493443,0.47275484,1926.4,1925.6,0.3134911]
[1772216495451,0.47275484,1926.4,1925.7,1.29822921]
[1772216495657,1.29771758,1926.5,1925.8,1.5184911]
[1772216495658,1.77044495,1926.5,1925.8,1.5184911]
[1772216495843,1.77044495,1926.5,1925.6,5.19291686]
[1772216495844,0.47275484,1926.4,1925.6,1.61173843]
[1772216496047,0.47275484,1926.4,1925.5,1.29831509]
[1772216496276,0.47275484,1926.4,1925.6,1.205]
[1772216496878,0.47275484,1926.4,1925.5,1.29831509]
[1772216497046,0.47275484,1926.2,1925.7,0.0011]
[1772216497487,0.47275484,1926.0,1925.2,2.5035246]
[1772216498298,0.47275484,1926.0,1925.5,0.0011]
[1772216499522,0.45400718,1925.8,1925.5,0.0011]
[1772216499692,1.7520087,1926.1,1925.5,0.0011]
[1772216500086,1.29793093,1926.2,1925.5,0.3156911]
[1772216500286,1.29793093,1926.2,1925.6,1.204]
[1772216500725,1.29793093,1926.2,1925.6,0.841]
[1772216501339,0.47517755,1926.1,1925.6,0.841]
[1772216501510,1.29802699,1926.0,1925.5,0.0011]
[1772216502643,0.47517755,1925.9,1925.4,0.0011]
[1772216503744,1.77333935,1925.8,1925.4,0.0011]
[1772216503944,0.47517755,1925.6,1925.1,0.0011]
[1772216504234,0.47517755,1925.4,1925.1,0.0011]
[1772216504432,0.47517755,1925.0,1924.8,0.0011]
[1772216504768,2.93029407,1924.9,1924.1,1.29927437]
[1772216504933,0.47517755,1924.8,1924.1,1.29927437]
[1772216505143,2.93029407,1925.1,1924.1,1.61496547]
[1772216505308,0.47517755,1925.1,1924.2,0.3156911]
[1772216505807,1.77387884,1925.0,1924.3,1.29917372]
[1772216506349,0.47517755,1924.3,1924.0,0.00153886]
[1772216506504,0.47517755,1924.3,1923.2,0.065536]
[1772216506505,0.47517755,1924.2,1923.2,0.3156911]
[1772216507039,0.47517755,1924.2,1923.3,1.203]
[1772216507447,0.47517755,1924.2,1923.3,1.3003174]
[1772216508515,0.47517755,1924.0,1923.4,1.29978163]
[1772216508951,0.47517755,1923.8,1923.3,0.0973174]
[1772216509314,0.47517755,1923.7,1923.1,1.29997352]
[1772216509514,2.93029407,1923.5,1923.0,0.00153886]
[1772216509910,0.47517755,1923.2,1922.5,1.203]
[1772216510350,0.47517755,1923.2,1922.5,0.7035]
[1772216510514,1.77514244,1923.2,1922.3,5.20208663]
[1772216510716,1.77514244,1923.2,1922.4,1.203]
[1772216511144,1.29988463,1923.3,1922.4,1.5186911]
[1772216511347,0.47517755,1923.5,1922.5,0.3156911]
[1772216511649,0.47517755,1923.7,1922.7,0.3156911]
[1772216512018,2.93029407,1923.6,1922.7,0.3156911]
[1772216512841,0.47517755,1923.5,1922.5,1.61608121]
[1772216513048,2.93029407,1923.4,1922.6,1.185]
[1772216513247,0.47517755,1923.3,1922.6,1.185]
[1772216514856,0.47517755,1923.3,1922.6,1.202]
[1772216515015,1.29975736,1923.5,1922.6,1.202]
[1772216515521,1.77486101,1923.6,1922.6,1.5176911]
[1772216515722,0.47517755,1923.5,1922.7,1.202]
[1772216516835,1.77610064,1924.0,1923.0,0.3156911]
[1772216517035,0.47517755,1923.9,1923.0,0.3156911]
[1772216517270,0.47517755,1923.9,1922.8,1.30018722]
[1772216517573,0.47517755,1923.9,1922.8,1.61587832]
[1772216518060,0.47517755,1923.8,1922.9,1.203]
[1772216518645,0.47517755,1923.8,1922.8,1.30018722]
[1772216518963,0.47517755,1923.8,1922.8,1.203]
[1772216518964,0.47517755,1923.6,1922.8,1.203]
[1772216519259,0.47517755,1923.6,1922.6,5.2007489]
[1772216519464,0.47517755,1923.4,1922.7,1.203]
[1772216519668,0.47517755,1923.4,1922.6,5.2007489]
[1772216519965,0.47517755,1923.4,1922.7,1.203]
[1772216521033,0.47517755,1923.3,1922.3,1.30052541]
[1772216521369,0.47517755,1923.2,1922.3,1.30052541]
[1772216521538,1.29984084,1923.4,1922.0,7.65875702]
[1772216521539,2.45511652,1922.5,1922.0,0.00153886]
[1772216521737,2.45511652,1923.0,1922.0,1.30225741]
[1772216521738,0.47517755,1922.4,1922.0,1.30225741]
[1772216522063,0.47517755,1922.4,1922.0,0.00153886]
[1772216522282,2.45511652,1922.1,1921.1,1.30127003]
[1772216522564,0.47517755,1922.4,1921.2,3.97634648]
[1772216522736,0.47517755,1922.4,1921.3,0.31722996]
[1772216522936,0.47517755,1922.4,1921.4,2.77234648]
[1772216523159,0.47517755,1922.4,1921.5,1.30106687]
[1772216523359,0.47517755,1922.7,1921.7,0.31722996]
[1772216523567,0.47517755,1922.7,1921.8,1.204]
[1772216523766,0.47517755,1922.7,1921.7,0.85]
[1772216523964,0.47517755,1922.7,1922.5,0.0011]
[1772216524171,0.47517755,1922.7,1921.7,0.85]
[1772216524558,0.47517755,1922.7,1921.7,3.62234648]
[1772216524760,0.00153886,1923.0,1922.2,2.53633929]
[1772216524963,0.47517755,1922.9,1922.2,1.203]
[1772216525277,1.301609,1923.0,1922.2,1.203]
[1772216525278,0.00153886,1923.0,1922.3,1.30052541]
[1772216525468,0.47671641,1923.0,1922.3,1.30052541]
[1772216526270,0.00153886,1923.0,1922.3,3.8368647]
[1772216526471,0.00153886,1923.0,1922.4,1.204]
[1772216526648,0.47671641,1923.0,1922.4,1.204]
[1772216526847,0.47671641,1923.0,1922.3,1.30052541]
[1772216527050,0.47671641,1923.0,1922.3,2.50452541]
[1772216527247,0.00153886,1923.0,1922.3,2.50452541]
[1772216528071,0.47671641,1923.0,1922.3,2.50452541]
[1772216529580,0.47517755,1923.3,1922.3,4.95964193]
[1772216529757,1.775035,1923.3,1922.3,1.30052541]
[1772216530080,0.47517755,1923.2,1922.4,1.205]
[1772216530697,0.47517755,1923.2,1922.3,1.30052541]
[1772216530857,0.47517755,1923.2,1922.5,1.206]
[1772216531351,0.47517755,1923.2,1922.2,5.20210164]
[1772216531557,0.46515695,1923.1,1922.3,1.205]
[1772216531859,0.46515695,1923.5,1922.4,2.77234648]
[1772216532181,0.46515695,1923.5,1922.4,0.31722996]
[1772216532765,0.46515695,1923.5,1922.5,1.206]
[1772216534080,0.46515695,1923.5,1922.6,4.07266895]
[1772216534280,0.46515695,1923.3,1922.6,2.50532247]
[1772216536757,0.46515695,1923.2,1922.5,1.206]
[1772216537394,0.46615695,1923.2,1922.5,1.206]
[1772216537880,0.001,1923.2,1922.6,0.31722996]
[1772216538856,0.001,1923.2,1922.7,1.30025484]
[1772216539057,0.001,1923.2,1922.8,1.206]
[1772216539356,0.001,1923.2,1922.7,1.30025484]
[1772216539988,0.46615695,1923.2,1922.7,1.30025484]
[1772216541190,0.001,1923.2,1922.7,1.208]
[1772216542081,0.46515695,1923.8,1922.8,0.31722996]
[1772216542263,1.76467967,1923.8,1922.8,0.31722996]
[1772216542561,0.46515695,1923.7,1922.8,0.31722996]
[1772216543261,0.46515695,1923.7,1922.9,1.30011961]
[1772216543998,1.76474006,1923.7,1922.9,1.25011961]
[1772216544192,0.46515695,1923.7,1923.0,1.208]
[1772216544388,0.001,1923.9,1923.0,1.52422996]
[1772216544594,1.76560947,1923.9,1923.0,1.52422996]
[1772216545462,1.76560947,1923.9,1923.1,1.2999844]
[1772216545463,0.46515695,1923.8,1923.1,1.2999844]
[1772216546284,0.46515695,1923.5,1922.4,5.51800495]
[1772216546491,0.46515695,1923.3,1922.6,1.207]
[1772216547478,0.46515695,1923.2,1922.7,1.30025484]
[1772216548382,0.46515695,1923.5,1922.7,1.6164848]
[1772216549674,1.29956238,1923.8,1922.9,0.31622996]
[1772216549675,1.7646733,1923.8,1922.9,0.31622996]
[1772216549892,1.7646733,1923.8,1923.0,1.208]
[1772216550284,1.7646733,1923.8,1923.1,1.208]
[1772216550470,0.46615695,1923.7,1922.9,0.31622996]
[1772216550665,0.46615695,1923.7,1923.2,1.208]
[1772216551480,0.001,1923.7,1923.3,1.29984921]
[1772216551679,0.001,1923.7,1923.3,1.24984921]
[1772216554200,0.001,1923.7,1923.4,1.211]
[1772216554398,0.46615695,1923.7,1923.2,5.19939686]
[1772216554591,0.46615695,1923.7,1923.1,1.212]
[1772216556073,1.29964649,1923.6,1922.7,0.0011]
[1772216556402,1.29964649,1923.6,1922.8,1.212]
[1772216556915,0.46515695,1923.5,1922.8,1.212]
[1772216557705,0.46515695,1923.5,1922.9,1.212]
[1772216558113,1.76490245,1923.5,1922.7,0.0011]
[1772216558410,1.76490245,1923.5,1922.8,1.212]
[1772216558910,1.76490245,1923.5,1922.8,1.162]
[1772216559610,1.30058326,1923.7,1922.9,2.77134648]
[1772216559834,0.49781172,1923.5,1922.7,0.0011]
[1772216560394,0.46003867,1923.3,1922.7,0.0011]
[1772216560584,0.46003867,1923.3,1922.7,1.2121]
[1772216561383,0.46003867,1923.6,1922.7,1.52832996]
[1772216561579,0.46003867,1923.6,1922.7,3.98344648]
[1772216561787,0.46003867,1923.6,1922.8,0.31622996]
[1772216562713,0.46003867,1923.5,1922.9,1.30011961]
[1772216562893,0.46003867,1923.5,1922.9,2.51111961]
[1772216563295,0.46003867,1923.5,1922.9,1.30011961]
[1772216563611,0.46003867,1923.5,1922.9,2.51211961]
[1772216564331,0.001,1923.7,1922.9,2.51211961]
[1772216564619,0.001,1923.7,1923.1,1.61621436]
[1772216565182,0.001,1923.7,1923.1,4.74441648]
[1772216565417,0.001,1923.7,1923.2,0.31622996]
[1772216565711,0.001,1923.9,1923.2,0.31622996]
[1772216565883,0.001,1923.9,1923.3,1.213]
[1772216566416,0.001,1923.9,1923.4,0.31522996]
[1772216566911,0.001,1923.9,1923.5,1.29971406]
[1772216567210,0.001,1923.9,1923.5,1.61494402]
[1772216568484,0.46003867,1924.4,1923.6,0.31522996]
[1772216568682,0.46003867,1924.4,1923.7,1.215]
[1772216568932,4.31063068,1924.7,1923.8,1.29951138]
[1772216569290,0.46003867,1924.6,1923.8,1.29951138]
[1772216570517,0.46003867,1924.6,1923.9,1.215]
[1772216571613,0.46003867,1924.6,1924.0,1.29937629]
[1772216571802,1.75881542,1924.9,1924.0,1.61460625]
[1772216572113,0.46003867,1924.8,1924.0,1.61460625]
[1772216574211,0.46003867,1924.7,1924.0,1.61460625]
[1772216575111,0.46103867,1924.7,1924.0,1.29937629]
[1772216575310,0.46103867,1924.7,1924.1,1.215]
[1772216576120,0.46003867,1924.6,1924.1,2.51427306]
[1772216577429,0.46003867,1924.6,1924.1,2.51527306]
[1772216578130,0.001,1924.7,1924.1,2.51527306]
[1772216578630,0.46103867,1924.7,1924.1,2.51527306]
[1772216578922,0.46103867,1924.7,1924.2,1.217]
[1772216580310,0.46003867,1924.5,1923.8,0.0011]
[1772216580513,0.46003867,1924.5,1923.9,1.217]
[1772216580831,0.46003867,1924.5,1923.8,1.2181]
[1772216581021,0.46003867,1924.5,1923.8,0.0011]
[1772216581223,0.46003867,1924.5,1923.8,1.2181]
[1772216581428,0.46003867,1924.9,1924.0,0.31522996]
[1772216581729,0.46003867,1924.8,1924.1,1.217]
[1772216582424,1.75893766,1924.8,1924.2,1.29924124]
[1772216582634,0.46003867,1924.7,1924.2,1.216]
[1772216582924,0.46003867,1924.7,1923.8,0.0011]
[1772216583129,0.46003867,1924.7,1924.0,1.216]
[1772216583130,0.46003867,1924.6,1924.0,1.216]
[1772216583504,0.46003867,1924.6,1923.8,0.0011]
[1772216583721,0.46003867,1924.6,1923.8,2.51760879]
[1772216584508,0.46003867,1924.4,1923.8,2.51760879]
[1772216585523,0.46003867,1924.4,1923.8,2.51759716]
[1772216585734,0.46003867,1924.4,1923.8,1.2181]
[1772216586318,0.46003867,1924.4,1923.8,0.0011]
[1772216586513,0.46003867,1924.4,1923.8,1.3005983]
[1772216587016,1.75907738,1924.5,1923.8,1.3005983]
[1772216587216,1.75907738,1924.5,1923.9,0.0011]
[1772216588033,0.46003867,1924.4,1923.9,0.0011]
[1772216588608,0.001,1924.6,1923.9,0.31632996]
[1772216588918,0.001,1924.6,1924.0,1.29937629]
[1772216589120,0.001,1924.6,1924.1,1.217]
[1772216589837,0.46103867,1924.6,1924.2,1.217]
[1772216591157,0.45929611,1924.5,1924.0,1.217]
[1772216591324,0.45929611,1924.5,1923.9,1.30049161]
[1772216591520,0.45929611,1924.5,1923.9,2.51749161]
[1772216591723,0.45929611,1924.5,1923.9,2.51754179]
[1772216592126,0.45929611,1924.5,1923.9,1.2181]
[1772216592321,0.45929611,1924.5,1923.9,2.51753776]
[1772216592930,1.75834577,1924.5,1923.9,2.51753776]
[1772216593452,0.45929611,1924.4,1923.9,2.51753776]
[1772216594870,1.29904966,1924.5,1923.9,2.51753776]
[1772216595044,0.45929611,1924.5,1923.9,2.51753776]
[1772216597754,0.45929611,1924.3,1923.9,1.30053776]
[1772216597959,0.45929611,1924.3,1924.0,1.221]
[1772216599457,0.45929611,1924.3,1923.9,1.30053776]
[1772216599631,0.45929611,1924.3,1924.0,1.222]
[1772216600260,0.45929611,1924.2,1923.9,0.0011]
[1772216600435,0.45929611,1924.2,1923.8,1.2241]
[1772216600944,0.45929611,1924.2,1923.8,2.52359204]
[1772216602057,1.29913579,1924.4,1923.8,2.839922]
[1772216602058,0.45929611,1924.4,1923.8,2.839922]
[1772216602264,0.46029611,1924.6,1923.9,0.31632996]
[1772216602775,0.001,1924.6,1923.9,0.31632996]
[1772216602933,0.001,1924.6,1924.0,0.31632996]
[1772216604132,0.001,1924.6,1924.1,1.54032996]
[1772216604863,0.001,1924.6,1924.2,1.29924124]
[1772216606747,0.46029611,1924.6,1924.1,1.226]
[1772216607066,0.46029611,1924.6,1924.2,1.29924124]
[1772216609550,0.45929611,1924.5,1924.1,1.226]
[1772216610167,0.45929611,1924.5,1924.0,1.61566437]
[1772216610465,0.45929611,1924.5,1924.0,1.229]
[1772216610672,0.45929611,1924.5,1923.8,1.30061138]
[1772216610969,0.45929611,1924.5,1923.9,1.229]
[1772216611172,0.45929611,1924.3,1923.9,1.229]
[1772216612062,0.45929611,1924.3,1924.1,0.0011]
[1772216613377,0.45929611,1924.1,1923.8,0.0011]
[1772216615980,0.45929611,1923.9,1923.6,0.0011]
[1772216616656,0.45929611,1923.8,1923.0,2.53059086]
[1772216618176,6.63928376,1924.1,1923.0,2.84802082]
[1772216618177,0.45929611,1923.7,1923.0,2.84802082]
[1772216618354,0.45929611,1923.7,1923.1,0.31742996]
[1772216619042,0.45929611,1923.7,1923.0,1.30159086]
[1772216619246,0.45929611,1923.7,1923.1,1.229]
[1772216620173,1.29964649,1923.6,1923.2,1.229]
[1772216620379,0.46376907,1923.5,1923.2,1.229]
[1772216622666,0.46376907,1923.5,1923.2,2.52890631]
[1772216622970,0.46376907,1923.5,1923.2,1.229]
[1772216623145,1.76350609,1923.5,1923.2,1.229]
[1772216623345,0.46376907,1923.4,1923.0,0.00153886]
[1772216624350,1.7635507,1923.4,1923.3,0.0011]
[1772216625175,0.46376907,1923.6,1923.3,0.0011]
[1772216628061,1.76342097,1923.6,1923.3,0.0011]
[1772216628263,0.46376907,1923.5,1923.3,0.0011]
[1772216629480,0.46376907,1923.4,1923.0,0.00263886]
[1772216630187,0.46376907,1922.9,1922.7,0.0011]
[1772216630354,1.91076907,1922.9,1922.7,0.0011]
[1772216630554,1.30018722,1922.8,1922.7,0.0011]
[1772216630752,3.21093216,1922.9,1922.7,0.0011]
[1772216631581,1.448,1922.8,1922.7,0.0011]
[1772216632481,0.46376907,1922.7,1922.5,0.0011]
[1772216632678,0.46376907,1922.7,1922.0,0.00153886]
[1772216633187,0.46376907,1922.3,1922.0,0.00153886]
[1772216633385,1.91276907,1922.2,1922.0,0.00153886]
[1772216634686,2.46009398,1922.4,1922.0,0.00153886]
[1772216634687,1.449,1922.4,1922.0,0.00153886]
[1772216634904,1.214,1922.5,1922.0,0.32006882]
[1772216635185,1.76388889,1922.9,1922.0,0.32006882]
[1772216635389,0.46376907,1922.8,1922.0,0.32006882]
[1772216635767,1.56348346,1922.7,1921.2,0.32006882]
[1772216635958,0.46376907,1922.5,1921.6,0.32006882]
[1772216636162,0.46376907,1922.5,1921.7,0.32116882]
[1772216636370,0.46376907,1922.5,1921.7,0.32006882]
[1772216636584,1.76416318,1922.5,1921.8,1.30086377]
[1772216637574,0.46376907,1922.4,1921.7,1.62095841]
[1772216637794,0.46376907,1922.4,1921.8,0.0011]
[1772216638088,1.91176907,1922.4,1921.8,0.0011]
[1772216638260,1.448,1922.4,1921.8,0.0011]
[1772216638464,1.91176907,1922.4,1921.8,0.0011]
[1772216638666,1.30052541,1922.3,1921.8,0.0011]
[1772216638972,3.21223597,1922.4,1921.8,0.0011]
[1772216639682,0.46376907,1922.6,1921.8,0.32116882]
[1772216639994,1.76389521,1922.9,1922.0,0.32006882]
[1772216640508,0.46376907,1922.8,1922.1,0.32116882]
[1772216640666,0.46376907,1922.8,1922.2,1.30059307]
[1772216640863,1.76540479,1923.0,1922.2,1.30059307]
[1772216641068,1.76540479,1923.0,1922.3,0.0011]
[1772216641069,1.7653633,1923.0,1922.3,0.0011]
[1772216641372,0.46376907,1922.9,1922.3,0.0011]
[1772216642461,1.91276907,1922.8,1922.3,0.0011]
[1772216642785,1.30025484,1922.7,1922.3,0.0011]
[1772216642990,1.76402391,1922.7,1922.3,0.0011]
[1772216643177,1.76402391,1922.7,1921.7,6.42966926]
[1772216643178,0.46376907,1922.6,1921.7,1.30086377]
[1772216643376,0.46376907,1922.6,1921.7,1.62203259]
[1772216643580,0.46376907,1922.8,1921.8,0.32116882]
[1772216643787,0.46376907,1922.9,1922.1,0.32116882]
[1772216644795,0.46376907,1922.9,1922.2,1.30059307]
[1772216645618,0.00153886,1923.0,1922.4,0.32116882]
[1772216645798,0.00153886,1923.0,1922.6,0.32116882]
[1772216646269,0.46376907,1923.8,1922.8,0.32116882]
[1772216646474,1.29958279,1923.7,1922.8,0.32116882]
[1772216646696,1.76334384,1923.8,1922.8,0.32116882]
[1772216646999,0.46376907,1923.8,1923.0,0.32116882]
[1772216649096,1.76328622,1923.8,1923.1,1.2999844]
[1772216649418,0.46476907,1923.4,1922.9,2.52607139]
[1772216649968,0.001,1923.3,1922.9,2.52607139]
[1772216653311,0.001,1923.3,1922.6,0.32116882]
[1772216653312,0.48114912,1923.3,1922.7,5.20088024]
[1772216654772,0.48114912,1923.3,1922.7,1.30025484]
[1772216655194,0.48014912,1923.1,1922.4,5.20167593]
[1772216656301,0.48014912,1922.7,1922.1,1.30066073]
[1772216656676,0.48014912,1922.5,1922.0,1.3022598]
[1772216656878,0.48114912,1923.3,1922.4,0.32116882]
[1772216657079,0.48014912,1923.2,1922.6,1.30032247]
[1772216658277,0.48014912,1923.1,1922.5,2.53435005]
[1772216659009,0.48014912,1923.0,1922.4,5.20173389]
[1772216659189,0.48014912,1923.0,1922.3,1.30045776]
[1772216659712,0.48014912,1922.9,1922.3,1.30045776]
[1772216661484,1.78030448,1922.9,1922.3,1.30045776]
[1772216661801,1.78028245,1922.9,1922.3,1.30045776]
[1772216661983,0.48014912,1922.9,1922.3,1.30045776]
[1772216663993,1.780276,1922.9,1922.3,1.30045776]
[1772216664207,0.48014912,1922.9,1922.3,1.30045776]
[1772216668290,0.48014912,1922.8,1922.3,2.54245776]
[1772216670406,0.48014912,1922.8,1922.3,2.86362658]
[1772216670614,0.48014912,1922.9,1922.3,2.86362658]
[1772216672432,1.7802761,1922.9,1922.3,2.86362658]
[1772216672605,0.48014912,1922.8,1922.3,2.54245776]
[1772216673001,0.48014912,1922.6,1922.1,1.30066073]
[1772216673224,0.48014912,1922.6,1922.0,2.54722683]
[1772216673596,0.48014912,1922.6,1922.0,0.00153886]
[1772216674005,0.48014912,1922.6,1922.0,1.3022665]
[1772216674404,1.7806092,1922.4,1922.0,0.00153886]
[1772216674807,0.48014912,1922.4,1922.0,0.00153886]
[1772216674995,1.78060688,1922.4,1922.3,0.0011]
[1772216675196,0.48014912,1922.3,1922.0,0.00153886]
[1772216675395,0.48014912,1922.3,1922.1,0.0011]
[1772216675896,0.48014912,1922.3,1922.0,0.00153886]
[1772216676095,0.48014912,1922.0,1921.6,0.0011]
[1772216676399,0.48014912,1922.3,1921.6,1.62546482]
[1772216679212,0.48014912,1922.3,1921.7,0.32116882]
[1772216679804,1.30045587,1922.5,1921.8,0.32336882]
[1772216679805,0.4694982,1922.5,1921.8,0.32336882]
[1772216681298,0.4694982,1922.5,1921.9,1.30079608]
[1772216681504,1.7698956,1922.5,1921.9,1.30079608]
[1772216682629,0.49272901,1922.4,1921.9,1.30079608]
[1772216682814,0.49272901,1922.4,1922.0,0.0022]
[1772216683616,0.49272901,1922.3,1922.0,0.0022]
[1772216684436,0.49272901,1922.3,1921.7,2.54688993]
[1772216684930,3.76055601,1922.4,1921.7,0.0022]
[1772216684931,0.49272901,1922.1,1921.7,0.0022]
[1772216685835,0.49272901,1922.0,1921.7,0.0022]
[1772216686354,0.49272901,1922.0,1921.6,0.0011]
[1772216686647,0.49272901,1922.0,1921.7,0.0022]
[1772216687319,0.49272901,1922.0,1921.7,0.0033]
[1772216690223,0.49272901,1922.2,1921.7,0.0033]
[1772216691442,1.441,1922.2,1921.7,0.0033]
[1772216691752,0.49272901,1922.1,1921.7,0.0033]
[1772216692122,0.49272901,1922.0,1921.7,0.0033]
[1772216693528,0.49272901,1922.4,1921.7,0.32556882]
[1772216694238,0.49272901,1922.2,1921.7,0.0033]
[1772216695729,0.49272901,1922.2,1921.7,0.32556882]
[1772216695932,0.49272901,1922.4,1921.7,0.0033]
[1772216696158,0.49272901,1922.3,1921.7,0.0033]
[1772216697056,0.49272901,1922.3,1921.6,0.29196099]
[1772216697358,0.49272901,1922.2,1921.5,1.30216687]
[1772216697537,0.49272901,1922.2,1921.5,1.59412786]
[1772216698154,0.49272901,1922.2,1921.5,1.30216687]
[1772216698457,0.49272901,1922.0,1921.5,0.0011]
[1772216699750,0.49272901,1922.0,1921.7,0.0011]
[1772216700457,0.49272901,1921.8,1921.7,0.0011]
[1772216701233,0.49272901,1921.8,1921.5,0.0011]
[1772216702135,0.49272901,1921.7,1921.0,1.30287762]
[1772216702457,0.49272901,1921.6,1921.0,1.30287762]
[1772216704340,0.49272901,1921.8,1921.1,0.29306099]
[1772216704660,0.49272901,1922.0,1921.2,0.29306099]
[1772216704957,0.49372901,1922.2,1921.2,0.29306099]
[1772216705156,1.79432563,1922.2,1921.2,0.29306099]
[1772216705359,0.49272901,1922.1,1921.2,0.29306099]
[1772216706056,0.49272901,1922.0,1921.2,0.29306099]
[1772216706355,0.49272901,1922.0,1921.4,0.29306099]
[1772216706555,0.49272901,1921.9,1921.3,1.30120231]
[1772216706959,0.49272901,1921.9,1921.1,1.30133777]
[1772216707353,0.49272901,1921.8,1921.1,1.30133777]
[1772216707553,0.49272901,1921.4,1920.5,1.7609802]
[1772216707750,0.49272901,1921.4,1920.6,0.45923587]
[1772216708384,0.49272901,1921.7,1920.8,0.45923587]
[1772216708662,1.79366531,1921.7,1920.8,0.45923587]
[1772216709534,0.49272901,1921.6,1920.8,0.45923587]
[1772216710566,1.30106687,1921.5,1920.9,1.30147326]
[1772216710860,1.79377681,1921.6,1920.9,1.30147326]
[1772216711061,0.47495512,1921.8,1921.0,0.49681962]
[1772216711274,1.77726169,1922.0,1921.0,0.49681962]
[1772216711673,0.47495512,1921.9,1921.0,0.49681962]
[1772216711841,0.001,1921.5,1921.0,0.49681962]
[1772216712578,1.30113458,1921.4,1920.7,5.20626815]
[1772216712735,1.7760897,1921.4,1920.7,5.20626815]
[1772216712938,0.47495512,1921.3,1920.6,1.2461]
[1772216713195,0.47495512,1921.2,1920.6,0.0011]
[1772216713538,0.47495512,1921.2,1920.6,1.3027757]
[1772216713738,0.47495512,1921.2,1920.6,0.0011]
[1772216714662,0.47495512,1921.0,1920.6,0.0011]
[1772216714869,1.30124247,1921.3,1920.6,0.49791962]
[1772216715094,1.77706374,1921.5,1920.6,0.49791962]
[1772216715375,0.47495512,1921.4,1920.6,0.49791962]
[1772216716580,0.47495512,1921.2,1920.6,0.0011]
[1772216716752,0.47495512,1921.1,1920.6,0.0011]
[1772216717359,1.77619567,1921.3,1920.6,0.0011]
[1772216717861,0.47495512,1921.2,1920.6,0.0011]
[1772216718768,0.47495512,1921.0,1920.6,0.0011]
[1772216719262,0.47495512,1921.0,1920.5,0.0011]
[1772216719466,0.47495512,1920.9,1920.5,0.0011]
[1772216720656,0.47495512,1920.8,1920.5,0.0011]
[1772216720975,1.7765639,1920.7,1920.4,0.1543637]
[1772216721288,0.47495512,1920.6,1920.0,0.00153886]
[1772216721469,0.47495512,1920.6,1920.1,0.0011]
[1772216722259,1.77654735,1920.8,1920.1,0.49791962]
[1772216722880,1.77654735,1920.8,1920.2,1.30194771]
[1772216723196,1.77637925,1921.0,1920.3,0.49681962]
[1772216723390,0.47495512,1921.0,1920.3,0.49791962]
[1772216723586,1.77620498,1921.3,1920.3,0.49791962]
[1772216723802,3.21520498,1921.3,1920.3,0.49791962]
[1772216724001,0.47495512,1921.2,1920.3,0.49791962]
[1772216724912,1.91395512,1921.1,1920.4,1.79863174]
[1772216725090,0.001,1920.9,1920.4,1.79863174]
[1772216726693,0.001,1920.9,1920.5,0.0011]
[1772216726894,1.77746573,1920.9,1920.5,0.0011]
[1772216728091,1.30251061,1920.9,1920.5,0.0011]
[1772216728292,0.47495512,1920.8,1920.5,0.0011]
[1772216728902,1.77655434,1920.8,1920.5,0.0011]
[1772216729301,0.47495512,1920.7,1920.2,0.0011]
[1772216729596,0.47495512,1920.7,1920.3,0.0011]
[1772216729992,0.47495512,1920.7,1920.0,0.00263886]
[1772216730428,0.47495512,1920.5,1920.0,1.30471157]
[1772216731216,1.77670075,1920.5,1920.0,0.00263886]
[1772216731810,0.47495512,1920.4,1920.0,0.00263886]
[1772216733104,0.001,1920.9,1920.2,0.49681962]
[1772216733314,1.77743248,1920.9,1920.2,0.49681962]
[1772216733526,1.30248059,1920.9,1920.2,0.49681962]
[1772216733940,1.77743571,1920.9,1920.2,0.49681962]
[1772216734141,0.47495512,1920.8,1920.1,1.30201552]
[1772216734624,0.47495512,1920.7,1920.0,1.30466935]
[1772216735113,1.30167655,1920.6,1920.0,1.30466935]
[1772216735316,0.47495512,1920.7,1920.0,1.30466935]
[1772216735618,1.77656624,1920.7,1920.0,1.80148897]
[1772216736011,1.30161112,1920.7,1920.1,0.49681962]
[1772216736223,3.22047516,1920.9,1920.1,0.49681962]
[1772216736430,0.47495512,1920.8,1920.1,0.49681962]
[1772216736744,0.47495512,1920.8,1920.0,1.30466935]
[1772216737109,1.30160878,1920.7,1920.0,1.30466935]
[1772216737309,1.7765639,1920.7,1920.3,0.0011]
[1772216738116,0.47495512,1920.6,1920.3,0.0011]
[1772216738512,0.47495512,1920.6,1920.2,0.0011]
[1772216738744,0.47495512,1920.5,1920.0,0.00263886]
[1772216739239,1.77467365,1920.4,1920.0,0.00263886]
[1772216739413,1.446,1920.5,1920.0,0.00263886]
[1772216739811,1.77453808,1920.6,1920.0,0.00263886]
[1772216740036,3.22053808,1920.6,1920.0,0.00263886]
[1772216740442,1.77453808,1920.6,1920.0,0.00263886]
[1772216740844,0.45033259,1920.5,1920.0,0.00263886]
[1772216741363,0.45033259,1920.5,1920.0,1.30472219]
[1772216741364,1.75208103,1920.5,1920.0,1.30472219]
[1772216742547,1.75208103,1920.5,1920.0,0.00263886]
[1772216743548,0.45033259,1920.4,1919.7,1.79435811]
[1772216745270,1.75220211,1920.4,1919.7,1.79435811]
[1772216745770,0.45033259,1920.3,1919.7,1.79435811]
[1772216746752,1.447,1920.9,1920.1,0.4920713]
[1772216746937,6.65289696,1920.9,1920.1,0.4920713]
[1772216747145,1.30254153,1920.8,1920.1,0.4920713]
[1772216747343,1.30254153,1920.8,1920.2,1.79401901]
[1772216747870,0.001,1920.8,1920.2,1.79401901]
[1772216748083,0.001,1920.9,1920.3,0.4920713]
[1772216749465,0.001,1920.9,1920.4,1.79388342]